[Event "Late-Titled-Tuesday-Blitz-February-20-2024"]
[Site "Chess.com"]
[Date "2024.02.20"]
[Round "8"]
[White "YurasovMat-2012"]
[Black "ExchangeAB"]
[Result "0-1"]
[WhiteElo "2597"]
[BlackElo "2477"]
[TimeControl "180+1"]
[EndTime "15:28:25 PST"]
[Termination "ExchangeAB won on time"]

1. e4 {[%clk 0:03:00.9]} 1... c6 {[%clk 0:02:58.3]} 2. Nf3 {[%clk 0:02:59]} 2...
d5 {[%clk 0:02:59.2]} 3. Nc3 {[%clk 0:02:57.3]} 3... Bg4 {[%clk 0:02:58.7]} 4.
h3 {[%clk 0:02:56.7]} 4... Bh5 {[%clk 0:02:58.8]} 5. exd5 {[%clk 0:02:56.2]}
5... cxd5 {[%clk 0:02:58.6]} 6. Bb5+ {[%clk 0:02:56.8]} 6... Nc6 {[%clk
0:02:58.5]} 7. g4 {[%clk 0:02:56.2]} 7... Bg6 {[%clk 0:02:58.8]} 8. Ne5 {[%clk
0:02:56.2]} 8... Rc8 {[%clk 0:02:58.7]} 9. d4 {[%clk 0:02:55.5]} 9... e6 {[%clk
0:02:58.9]} 10. Qf3 {[%clk 0:02:53.5]} 10... Bd6 {[%clk 0:02:45.4]} 11. Bf4
{[%clk 0:02:50.3]} 11... Ne7 {[%clk 0:02:43.4]} 12. h4 {[%clk 0:02:45.1]} 12...
Bxe5 {[%clk 0:02:31.7]} 13. Bxe5 {[%clk 0:02:43.4]} 13... O-O {[%clk 0:02:25.7]}
14. h5 {[%clk 0:02:34.7]} 14... Nxe5 {[%clk 0:02:16.6]} 15. dxe5 {[%clk
0:02:33.7]} 15... Bxc2 {[%clk 0:02:10.7]} 16. h6 {[%clk 0:02:27.7]} 16... Ng6
{[%clk 0:02:09.6]} 17. Qh3 {[%clk 0:02:18.8]} 17... Nxe5 {[%clk 0:01:48]} 18.
hxg7 {[%clk 0:02:17.2]} 18... Kxg7 {[%clk 0:01:47.5]} 19. Qh6+ {[%clk
0:02:17.1]} 19... Kg8 {[%clk 0:01:42.1]} 20. Qf4 {[%clk 0:02:04.6]} 20... Nd3+
{[%clk 0:01:36.1]} 21. Bxd3 {[%clk 0:02:02]} 21... Bxd3 {[%clk 0:01:37]} 22. Rd1
{[%clk 0:01:58.8]} 22... Bg6 {[%clk 0:01:36.6]} 23. Qe5 {[%clk 0:01:56.9]} 23...
Qc7 {[%clk 0:01:35]} 24. Qf6 {[%clk 0:01:54.9]} 24... Qc4 {[%clk 0:01:28.4]} 25.
Rd4 {[%clk 0:01:52.9]} 25... Qa6 {[%clk 0:01:22.9]} 26. g5 {[%clk 0:01:20.9]}
26... Rc4 {[%clk 0:01:11.2]} 27. O-O {[%clk 0:01:06.7]} 27... Rxd4 {[%clk
0:01:08.2]} 28. Qxd4 {[%clk 0:01:07.6]} 28... Rc8 {[%clk 0:01:04.3]} 29. Re1
{[%clk 0:00:57.2]} 29... Rc4 {[%clk 0:00:59.7]} 30. Qf6 {[%clk 0:00:56.3]} 30...
Qd6 {[%clk 0:00:54.2]} 31. Ne2 {[%clk 0:00:36.4]} 31... Re4 {[%clk 0:00:42.9]}
32. Rc1 {[%clk 0:00:34.3]} 32... Rc4 {[%clk 0:00:31.3]} 33. Rxc4 {[%clk
0:00:33.1]} 33... dxc4 {[%clk 0:00:32.2]} 34. Nf4 {[%clk 0:00:30.1]} 34... b5
{[%clk 0:00:26.1]} 35. Ng2 {[%clk 0:00:15.2]} 35... a5 {[%clk 0:00:25.2]} 36.
Ne3 {[%clk 0:00:15.1]} 36... Qd3 {[%clk 0:00:20.5]} 37. Kh2 {[%clk 0:00:13.1]}
37... a4 {[%clk 0:00:17.1]} 38. Ng4 {[%clk 0:00:12.4]} 38... Qd6+ {[%clk
0:00:14.7]} 39. Kg2 {[%clk 0:00:04.3]} 39... Qd5+ {[%clk 0:00:07.2]} 40. Kg3
{[%clk 0:00:04.4]} 40... Kf8 {[%clk 0:00:06.5]} 41. Ne5 {[%clk 0:00:02.2]} 41...
Ke8 {[%clk 0:00:04.7]} 42. Qh8+ {[%clk 0:00:02.2]} 42... Ke7 {[%clk 0:00:04.5]}
43. Qf6+ {[%clk 0:00:03.1]} 43... Kd6 {[%clk 0:00:03.8]} 44. Qf4 {[%clk
0:00:04]} 44... Qxe5 {[%clk 0:00:03.3]} 0-1

[Event "Late-Titled-Tuesday-Blitz-February-20-2024"]
[Site "Chess.com"]
[Date "2024.02.20"]
[Round "8"]
[White "Thjop"]
[Black "lucliasco"]
[Result "0-1"]
[WhiteElo "2613"]
[BlackElo "2882"]
[TimeControl "180+1"]
[EndTime "15:28:26 PST"]
[Termination "lucliasco won by resignation"]

1. e4 {[%clk 0:03:00.9]} 1... e5 {[%clk 0:02:54.1]} 2. Nf3 {[%clk 0:03:01]} 2...
Nc6 {[%clk 0:02:53.8]} 3. Bb5 {[%clk 0:03:01.1]} 3... g6 {[%clk 0:02:53.3]} 4.
O-O {[%clk 0:02:51.9]} 4... Bg7 {[%clk 0:02:53.4]} 5. c3 {[%clk 0:02:51.5]} 5...
d6 {[%clk 0:02:53.1]} 6. d4 {[%clk 0:02:51.8]} 6... Bd7 {[%clk 0:02:53.2]} 7. d5
{[%clk 0:02:51.8]} 7... Nb8 {[%clk 0:02:52.9]} 8. Bxd7+ {[%clk 0:02:51.8]} 8...
Nxd7 {[%clk 0:02:53.8]} 9. c4 {[%clk 0:02:52.2]} 9... Ngf6 {[%clk 0:02:53.9]}
10. Nc3 {[%clk 0:02:52.6]} 10... Nc5 {[%clk 0:02:53.5]} 11. Qc2 {[%clk
0:02:48.7]} 11... a5 {[%clk 0:02:54.4]} 12. b3 {[%clk 0:02:45.9]} 12... O-O
{[%clk 0:02:51.8]} 13. Be3 {[%clk 0:02:45.7]} 13... b6 {[%clk 0:02:49.8]} 14. a3
{[%clk 0:02:42.8]} 14... a4 {[%clk 0:02:47.4]} 15. bxa4 {[%clk 0:02:33.1]} 15...
Nfd7 {[%clk 0:02:45.2]} 16. Nd2 {[%clk 0:02:29.7]} 16... f5 {[%clk 0:02:44.7]}
17. f3 {[%clk 0:02:29.7]} 17... f4 {[%clk 0:02:43.7]} 18. Bf2 {[%clk 0:02:29.8]}
18... g5 {[%clk 0:02:44]} 19. h3 {[%clk 0:02:14.1]} 19... h5 {[%clk 0:02:43.4]}
20. Rfd1 {[%clk 0:02:10.4]} 20... g4 {[%clk 0:02:43.4]} 21. hxg4 {[%clk
0:02:09.6]} 21... hxg4 {[%clk 0:02:43.3]} 22. Kf1 {[%clk 0:02:07.6]} 22... Qg5
{[%clk 0:02:40.2]} 23. Ke2 {[%clk 0:02:05.9]} 23... Kf7 {[%clk 0:02:40.6]} 24.
Rh1 {[%clk 0:01:56.6]} 24... Rh8 {[%clk 0:02:40.1]} 25. Nb5 {[%clk 0:01:36.4]}
25... g3 {[%clk 0:02:30.8]} 26. Rxh8 {[%clk 0:01:35.9]} 26... Rxh8 {[%clk
0:02:24.3]} 27. Bxc5 {[%clk 0:01:35.4]} 27... Nxc5 {[%clk 0:02:25.2]} 28. Nxc7
{[%clk 0:01:35.3]} 28... Rh2 {[%clk 0:02:22.4]} 29. Rg1 {[%clk 0:01:33.9]} 29...
Qh4 {[%clk 0:02:12.5]} 30. Ne6 {[%clk 0:01:18.9]} 30... Rh1 {[%clk 0:02:02.4]}
31. Qc1 {[%clk 0:01:01.5]} 31... Qh2 {[%clk 0:01:58.9]} 32. Ng5+ {[%clk
0:00:11.8]} 32... Kg6 {[%clk 0:01:57.7]} 33. Nh3 {[%clk 0:00:11.2]} 33... Qxg2+
{[%clk 0:01:58.2]} 34. Rxg2 {[%clk 0:00:11.1]} 34... Rxc1 {[%clk 0:01:59.1]} 35.
Rg1 {[%clk 0:00:10.4]} 35... Rc2 {[%clk 0:01:56.4]} 36. Rb1 {[%clk 0:00:10.2]}
36... Nxa4 {[%clk 0:01:55.7]} 37. Kd1 {[%clk 0:00:09.8]} 37... Ra2 {[%clk
0:01:55.5]} 38. Rb4 {[%clk 0:00:10.1]} 38... Nc3+ {[%clk 0:01:55.8]} 39. Kc1
{[%clk 0:00:08.7]} 39... Ne2+ {[%clk 0:01:47.8]} 40. Kd1 {[%clk 0:00:07.5]}
40... Nd4 {[%clk 0:01:48.4]} 41. Rxb6 {[%clk 0:00:05.8]} 41... Ra1+ {[%clk
0:01:48.9]} 42. Nb1 {[%clk 0:00:05.2]} 42... Bf8 {[%clk 0:01:49.5]} 43. c5
{[%clk 0:00:04.7]} 43... Be7 {[%clk 0:01:45.4]} 44. c6 {[%clk 0:00:05.1]} 44...
Bd8 {[%clk 0:01:45.9]} 45. Rb7 {[%clk 0:00:05.2]} 45... Ba5 {[%clk 0:01:46.1]}
46. Kc1 {[%clk 0:00:05]} 46... Ra2 {[%clk 0:01:44.5]} 47. Rb2 {[%clk 0:00:04]}
47... Ne2+ {[%clk 0:01:40]} 48. Kc2 {[%clk 0:00:03.9]} 48... Nd4+ {[%clk
0:01:32.3]} 49. Kc1 {[%clk 0:00:04]} 49... Rxb2 {[%clk 0:01:26.6]} 50. Kxb2
{[%clk 0:00:04.9]} 50... Kh5 {[%clk 0:01:27.2]} 51. Nc3 {[%clk 0:00:04.8]} 51...
Kh4 {[%clk 0:01:25.2]} 52. Ng1 {[%clk 0:00:05.1]} 52... g2 {[%clk 0:01:25.2]}
53. Nce2 {[%clk 0:00:05.2]} 53... Nxe2 {[%clk 0:01:25]} 54. Nxe2 {[%clk
0:00:06.1]} 54... Kg5 {[%clk 0:01:19.7]} 55. Kb3 {[%clk 0:00:06.4]} 55... Kf6
{[%clk 0:01:20.1]} 56. Kc4 {[%clk 0:00:06.8]} 56... Ke7 {[%clk 0:01:20.1]} 57.
Kb5 {[%clk 0:00:07.4]} 57... Bd2 {[%clk 0:01:13.8]} 58. a4 {[%clk 0:00:07.2]}
58... Be3 {[%clk 0:01:13.8]} 59. a5 {[%clk 0:00:06.6]} 59... Kd8 {[%clk
0:01:14.4]} 60. Ka6 {[%clk 0:00:05.6]} 60... Kc7 {[%clk 0:01:14.6]} 61. Kb5
{[%clk 0:00:06.2]} 61... g1=Q {[%clk 0:01:14.8]} 62. Nxg1 {[%clk 0:00:05.6]}
62... Bxg1 {[%clk 0:01:15.7]} 63. Ka6 {[%clk 0:00:06.1]} 63... Be3 {[%clk
0:01:14.8]} 64. Kb5 {[%clk 0:00:06.5]} 64... Bd4 {[%clk 0:01:13.6]} 65. Ka6
{[%clk 0:00:06.8]} 65... Kb8 {[%clk 0:01:14.2]} 66. Kb5 {[%clk 0:00:06.5]} 66...
Ka7 {[%clk 0:01:14.8]} 67. Kb4 {[%clk 0:00:03.4]} 67... Ka6 {[%clk 0:01:14.7]}
68. Ka4 {[%clk 0:00:03.8]} 68... Bc5 {[%clk 0:01:14.2]} 69. Kb3 {[%clk
0:00:03.4]} 69... Ba7 {[%clk 0:01:13.1]} 70. Kb4 {[%clk 0:00:03.6]} 70... Bb8
{[%clk 0:01:13.8]} 71. Ka4 {[%clk 0:00:02.2]} 71... Bc7 {[%clk 0:01:14.6]} 72.
Kb3 {[%clk 0:00:02.8]} 72... Bxa5 {[%clk 0:01:14.7]} 73. Kc4 {[%clk 0:00:03.7]}
73... Bc7 {[%clk 0:01:15.2]} 74. Kd3 {[%clk 0:00:04.6]} 74... Kb5 {[%clk
0:01:15.6]} 75. Ke2 {[%clk 0:00:05.5]} 75... Kc4 {[%clk 0:01:16.1]} 76. Kf1
{[%clk 0:00:06.4]} 76... Kd3 {[%clk 0:01:16.5]} 77. Kf2 {[%clk 0:00:07.3]} 77...
Kd2 {[%clk 0:01:16.8]} 78. Kf1 {[%clk 0:00:07.7]} 78... Ke3 {[%clk 0:01:17.4]}
79. Kg2 {[%clk 0:00:08.3]} 79... Ke2 {[%clk 0:01:18]} 80. Kh3 {[%clk 0:00:08.9]}
80... Kxf3 {[%clk 0:01:18.7]} 0-1

[Event "Late-Titled-Tuesday-Blitz-February-20-2024"]
[Site "Chess.com"]
[Date "2024.02.20"]
[Round "8"]
[White "BogdanDeac"]
[Black "sergiochess83"]
[Result "1-0"]
[WhiteElo "3046"]
[BlackElo "2913"]
[TimeControl "180+1"]
[EndTime "15:28:27 PST"]
[Termination "BogdanDeac won on time"]

1. d4 {[%clk 0:03:00.9]} 1... d5 {[%clk 0:02:52.2]} 2. Nf3 {[%clk 0:02:59.2]}
2... Nf6 {[%clk 0:02:51.6]} 3. Bf4 {[%clk 0:02:59.3]} 3... c5 {[%clk 0:02:44.5]}
4. e3 {[%clk 0:02:59.1]} 4... Nc6 {[%clk 0:02:44.1]} 5. c3 {[%clk 0:02:59.2]}
5... Qb6 {[%clk 0:02:41.5]} 6. Qc2 {[%clk 0:02:58.7]} 6... g6 {[%clk 0:02:33.3]}
7. Nbd2 {[%clk 0:02:58.1]} 7... Bg7 {[%clk 0:02:30]} 8. Be2 {[%clk 0:02:57.9]}
8... O-O {[%clk 0:02:29.2]} 9. O-O {[%clk 0:02:58]} 9... Bf5 {[%clk 0:02:12.6]}
10. dxc5 {[%clk 0:02:55.5]} 10... Qxc5 {[%clk 0:02:07.4]} 11. Qb3 {[%clk
0:02:55.1]} 11... Na5 {[%clk 0:01:59.2]} 12. Qa4 {[%clk 0:02:54.1]} 12... Bd7
{[%clk 0:01:54.8]} 13. Qd1 {[%clk 0:02:53]} 13... Nc6 {[%clk 0:01:52.8]} 14. Rc1
{[%clk 0:02:50.8]} 14... Qa5 {[%clk 0:01:43.5]} 15. a3 {[%clk 0:02:42]} 15...
Rac8 {[%clk 0:01:26.7]} 16. h3 {[%clk 0:02:30.3]} 16... Rfd8 {[%clk 0:01:16.9]}
17. Bh2 {[%clk 0:02:23.5]} 17... Ne4 {[%clk 0:01:06.4]} 18. Nxe4 {[%clk
0:01:59.2]} 18... dxe4 {[%clk 0:01:06]} 19. Nd2 {[%clk 0:01:59.5]} 19... Be6
{[%clk 0:00:48.6]} 20. Qc2 {[%clk 0:01:41]} 20... f5 {[%clk 0:00:48.3]} 21. Nc4
{[%clk 0:01:36.8]} 21... Bxc4 {[%clk 0:00:17.3]} 22. Bxc4+ {[%clk 0:01:35.8]}
22... Kh8 {[%clk 0:00:18.2]} 23. Rfd1 {[%clk 0:01:16.3]} 23... Ne5 {[%clk
0:00:17.6]} 24. Be2 {[%clk 0:01:14.6]} 24... h5 {[%clk 0:00:12.9]} 25. a4 {[%clk
0:00:48.3]} 25... Bf6 {[%clk 0:00:12.6]} 26. b4 {[%clk 0:00:38.1]} 26... Qb6
{[%clk 0:00:12.9]} 27. Rxd8+ {[%clk 0:00:25.7]} 27... Rxd8 {[%clk 0:00:12.6]}
28. Rd1 {[%clk 0:00:16.1]} 28... Kg7 {[%clk 0:00:12.2]} 29. a5 {[%clk
0:00:10.6]} 29... Rxd1+ {[%clk 0:00:11.5]} 30. Qxd1 {[%clk 0:00:10.9]} 30... Qc6
{[%clk 0:00:12.4]} 31. Qc2 {[%clk 0:00:07.9]} 31... b6 {[%clk 0:00:11.3]} 32.
axb6 {[%clk 0:00:07.1]} 32... axb6 {[%clk 0:00:12.2]} 33. c4 {[%clk 0:00:07.1]}
33... h4 {[%clk 0:00:06.9]} 34. Bf1 {[%clk 0:00:05.2]} 34... Qd7 {[%clk
0:00:05.4]} 35. c5 {[%clk 0:00:03.5]} 35... bxc5 {[%clk 0:00:06.3]} 36. bxc5
{[%clk 0:00:04]} 36... Qc6 {[%clk 0:00:06.5]} 37. Bxe5 {[%clk 0:00:02.8]} 37...
Bxe5 {[%clk 0:00:06.7]} 38. Qc4 {[%clk 0:00:03.7]} 38... Bf6 {[%clk 0:00:05.3]}
39. Be2 {[%clk 0:00:02.7]} 39... Be5 {[%clk 0:00:05.1]} 40. Qb4 {[%clk
0:00:02.6]} 40... Bf6 {[%clk 0:00:05]} 41. Bb5 {[%clk 0:00:02.8]} 41... Qd5
{[%clk 0:00:03.8]} 42. c6 {[%clk 0:00:03.3]} 42... Qd1+ {[%clk 0:00:03.1]} 43.
Bf1 {[%clk 0:00:03.4]} 43... Qc1 {[%clk 0:00:03.6]} 44. Qb7 {[%clk 0:00:02.9]}
1-0

[Event "Late-Titled-Tuesday-Blitz-February-20-2024"]
[Site "Chess.com"]
[Date "2024.02.20"]
[Round "8"]
[White "Felix-Rose"]
[Black "abeljusto"]
[Result "1-0"]
[WhiteElo "2268"]
[BlackElo "2098"]
[TimeControl "180+1"]
[EndTime "15:28:29 PST"]
[Termination "Felix-Rose won on time"]

1. e4 {[%clk 0:02:57.6]} 1... c5 {[%clk 0:03:00.9]} 2. Nf3 {[%clk 0:02:57.5]}
2... Nc6 {[%clk 0:02:52.5]} 3. d4 {[%clk 0:02:57.7]} 3... cxd4 {[%clk
0:02:51.8]} 4. Nxd4 {[%clk 0:02:58.6]} 4... Nf6 {[%clk 0:02:50.9]} 5. Nc3 {[%clk
0:02:55.8]} 5... d6 {[%clk 0:02:44]} 6. Bg5 {[%clk 0:02:53.7]} 6... Bd7 {[%clk
0:02:29.1]} 7. Bxf6 {[%clk 0:02:46.2]} 7... gxf6 {[%clk 0:02:27.8]} 8. Qd2
{[%clk 0:02:43.4]} 8... Rc8 {[%clk 0:02:25.2]} 9. O-O-O {[%clk 0:02:42.8]} 9...
h5 {[%clk 0:02:21.2]} 10. Kb1 {[%clk 0:02:41.3]} 10... Bh6 {[%clk 0:02:20.5]}
11. Qd3 {[%clk 0:02:25.3]} 11... Ne5 {[%clk 0:02:19.1]} 12. Qg3 {[%clk
0:01:30.7]} 12... Kf8 {[%clk 0:02:10.5]} 13. f4 {[%clk 0:01:23.5]} 13... Nc4
{[%clk 0:02:07.8]} 14. Bxc4 {[%clk 0:01:19.3]} 14... Rxc4 {[%clk 0:02:06.8]} 15.
Qd3 {[%clk 0:01:17.7]} 15... Qc8 {[%clk 0:02:02.5]} 16. Rhf1 {[%clk 0:01:06.8]}
16... a6 {[%clk 0:01:42.2]} 17. f5 {[%clk 0:01:04.6]} 17... b5 {[%clk
0:01:28.8]} 18. Nd5 {[%clk 0:00:53.9]} 18... Qc5 {[%clk 0:01:25.1]} 19. b3
{[%clk 0:00:38.7]} 19... Rxd4 {[%clk 0:01:10.3]} 20. Qxd4 {[%clk 0:00:37.4]}
20... Qxd4 {[%clk 0:01:10.1]} 21. Rxd4 {[%clk 0:00:37.7]} 21... Bc6 {[%clk
0:01:08.9]} 22. c4 {[%clk 0:00:30.6]} 22... h4 {[%clk 0:00:53.9]} 23. cxb5
{[%clk 0:00:29.1]} 23... axb5 {[%clk 0:00:53.1]} 24. Rf2 {[%clk 0:00:23.3]}
24... Kg7 {[%clk 0:00:39.3]} 25. Rc2 {[%clk 0:00:21.8]} 25... Bxd5 {[%clk
0:00:25]} 26. exd5 {[%clk 0:00:21.5]} 26... Be3 {[%clk 0:00:22.4]} 27. Rg4+
{[%clk 0:00:19.2]} 27... Bg5 {[%clk 0:00:21.9]} 28. Rc7 {[%clk 0:00:18.3]} 28...
Re8 {[%clk 0:00:20.9]} 29. Rb4 {[%clk 0:00:16.3]} 29... Kh6 {[%clk 0:00:18]} 30.
Rxb5 {[%clk 0:00:15]} 30... Bf4 {[%clk 0:00:16.9]} 31. h3 {[%clk 0:00:13.9]}
31... Kg5 {[%clk 0:00:14.5]} 32. Rbb7 {[%clk 0:00:13.5]} 32... Be5 {[%clk
0:00:12]} 33. Rxe7 {[%clk 0:00:12.8]} 33... Rxe7 {[%clk 0:00:12]} 34. Rxe7
{[%clk 0:00:12.9]} 34... Kxf5 {[%clk 0:00:12.9]} 35. Rxf7 {[%clk 0:00:11.7]}
35... Ke4 {[%clk 0:00:11.7]} 36. Rh7 {[%clk 0:00:11.2]} 36... Bg3 {[%clk
0:00:09.9]} 37. Rh6 {[%clk 0:00:11.4]} 37... f5 {[%clk 0:00:09.1]} 38. a4 {[%clk
0:00:07.6]} 38... Kxd5 {[%clk 0:00:06.8]} 39. b4 {[%clk 0:00:07.7]} 39... Kc4
{[%clk 0:00:05.5]} 40. Rf6 {[%clk 0:00:07.6]} 40... Kxb4 {[%clk 0:00:02]} 41.
Rxf5 {[%clk 0:00:06.5]} 41... Kxa4 {[%clk 0:00:02.6]} 42. Kc2 {[%clk 0:00:07]}
42... Kb4 {[%clk 0:00:02.2]} 43. Kd3 {[%clk 0:00:07.9]} 1-0

[Event "Late-Titled-Tuesday-Blitz-February-20-2024"]
[Site "Chess.com"]
[Date "2024.02.20"]
[Round "8"]
[White "dosto07"]
[Black "Chessdude1987"]
[Result "1-0"]
[WhiteElo "2493"]
[BlackElo "2357"]
[TimeControl "180+1"]
[EndTime "15:28:31 PST"]
[Termination "dosto07 won on time"]

1. e4 {[%clk 0:03:00.9]} 1... e6 {[%clk 0:02:59.6]} 2. d4 {[%clk 0:03:00.4]}
2... d5 {[%clk 0:02:59.7]} 3. Nd2 {[%clk 0:03:00.3]} 3... c5 {[%clk 0:02:59.6]}
4. exd5 {[%clk 0:02:59.9]} 4... Qxd5 {[%clk 0:03:00.5]} 5. Ngf3 {[%clk 0:03:00]}
5... cxd4 {[%clk 0:03:00.6]} 6. Bc4 {[%clk 0:03:00.4]} 6... Qd6 {[%clk
0:03:01.1]} 7. O-O {[%clk 0:03:00.5]} 7... Nf6 {[%clk 0:03:01.6]} 8. Nb3 {[%clk
0:03:01]} 8... Nc6 {[%clk 0:03:02.2]} 9. Nbxd4 {[%clk 0:03:01.4]} 9... Nxd4
{[%clk 0:03:03]} 10. Nxd4 {[%clk 0:03:01.9]} 10... Be7 {[%clk 0:03:03.6]} 11. c3
{[%clk 0:03:01.6]} 11... O-O {[%clk 0:03:03.3]} 12. Re1 {[%clk 0:02:55.7]} 12...
Qc7 {[%clk 0:03:02.9]} 13. Bb3 {[%clk 0:02:56]} 13... Bd7 {[%clk 0:03:00.3]} 14.
Qf3 {[%clk 0:02:54.6]} 14... a5 {[%clk 0:02:59.3]} 15. Bc2 {[%clk 0:02:42.3]}
15... a4 {[%clk 0:02:38.5]} 16. Bf4 {[%clk 0:02:30.8]} 16... Bd6 {[%clk
0:02:37.6]} 17. Bxd6 {[%clk 0:02:30]} 17... Qxd6 {[%clk 0:02:37.8]} 18. Rad1
{[%clk 0:02:30.1]} 18... Qb6 {[%clk 0:02:32.8]} 19. Qe2 {[%clk 0:02:20.6]} 19...
Kh8 {[%clk 0:02:27.6]} 20. Rb1 {[%clk 0:02:05.6]} 20... a3 {[%clk 0:02:18.7]}
21. bxa3 {[%clk 0:02:03.6]} 21... Qc7 {[%clk 0:02:14.7]} 22. Qf3 {[%clk
0:01:59.6]} 22... Bc6 {[%clk 0:01:42.8]} 23. Nxc6 {[%clk 0:01:58.4]} 23... bxc6
{[%clk 0:01:41.3]} 24. c4 {[%clk 0:01:46.5]} 24... Qd6 {[%clk 0:01:28.7]} 25.
Rb3 {[%clk 0:01:21.3]} 25... Qc5 {[%clk 0:01:23.9]} 26. Bd3 {[%clk 0:01:08.9]}
26... Rfd8 {[%clk 0:01:21.3]} 27. Bf1 {[%clk 0:01:07.2]} 27... Ra7 {[%clk
0:01:06.7]} 28. Rd1 {[%clk 0:01:03]} 28... Rf8 {[%clk 0:00:45.3]} 29. Qe3 {[%clk
0:01:00.8]} 29... Qa5 {[%clk 0:00:43.2]} 30. h3 {[%clk 0:00:55.8]} 30... h6
{[%clk 0:00:37.1]} 31. Rd6 {[%clk 0:00:52.5]} 31... Rc7 {[%clk 0:00:30.9]} 32.
Qc3 {[%clk 0:00:48.1]} 32... Qxc3 {[%clk 0:00:24]} 33. Rxc3 {[%clk 0:00:48.4]}
33... Ne4 {[%clk 0:00:24.1]} 34. Rdd3 {[%clk 0:00:42]} 34... Nxc3 {[%clk
0:00:24.2]} 35. Rxc3 {[%clk 0:00:42.7]} 35... Ra8 {[%clk 0:00:24.1]} 36. g3
{[%clk 0:00:38.8]} 36... Rca7 {[%clk 0:00:23.5]} 37. Bg2 {[%clk 0:00:33.9]}
37... Rxa3 {[%clk 0:00:20.6]} 38. Rxa3 {[%clk 0:00:33.9]} 38... Rxa3 {[%clk
0:00:20.2]} 39. Bxc6 {[%clk 0:00:34.6]} 39... Rxa2 {[%clk 0:00:20.4]} 40. h4
{[%clk 0:00:30.3]} 40... Kg8 {[%clk 0:00:18.6]} 41. Kg2 {[%clk 0:00:30.5]} 41...
Kf8 {[%clk 0:00:18.5]} 42. Kf3 {[%clk 0:00:30.4]} 42... Ke7 {[%clk 0:00:17.8]}
43. Ke3 {[%clk 0:00:30.3]} 43... Kd6 {[%clk 0:00:17]} 44. Be8 {[%clk 0:00:29.8]}
44... f6 {[%clk 0:00:11]} 45. g4 {[%clk 0:00:25.4]} 45... Kc5 {[%clk 0:00:08.1]}
46. Bd7 {[%clk 0:00:21]} 46... e5 {[%clk 0:00:07.9]} 47. Be6 {[%clk 0:00:19.5]}
47... Ra3+ {[%clk 0:00:06.7]} 48. Ke4 {[%clk 0:00:18.1]} 48... Rh3 {[%clk
0:00:06]} 49. h5 {[%clk 0:00:18]} 49... Rh2 {[%clk 0:00:05.6]} 50. f3 {[%clk
0:00:17.5]} 50... Rd2 {[%clk 0:00:04.8]} 51. Bd5 {[%clk 0:00:13.1]} 51... Rd4+
{[%clk 0:00:04.3]} 52. Kf5 {[%clk 0:00:12.6]} 1-0

[Event "Late-Titled-Tuesday-Blitz-February-20-2024"]
[Site "Chess.com"]
[Date "2024.02.20"]
[Round "8"]
[White "pr1105"]
[Black "igorknyazev"]
[Result "1-0"]
[WhiteElo "2342"]
[BlackElo "2199"]
[TimeControl "180+1"]
[EndTime "15:28:31 PST"]
[Termination "pr1105 won by resignation"]

1. e4 {[%clk 0:02:54.2]} 1... e5 {[%clk 0:02:58.4]} 2. Nf3 {[%clk 0:02:53.7]}
2... Nf6 {[%clk 0:02:58.6]} 3. Nxe5 {[%clk 0:02:53.4]} 3... Nxe4 {[%clk
0:02:57.8]} 4. Qe2 {[%clk 0:02:53.2]} 4... Qe7 {[%clk 0:02:57.7]} 5. Qxe4 {[%clk
0:02:53.6]} 5... d6 {[%clk 0:02:58.4]} 6. d4 {[%clk 0:02:54]} 6... dxe5 {[%clk
0:02:58.8]} 7. dxe5 {[%clk 0:02:54.9]} 7... Nc6 {[%clk 0:02:58.5]} 8. Nc3 {[%clk
0:02:54.2]} 8... Qxe5 {[%clk 0:02:57.8]} 9. Qxe5+ {[%clk 0:02:52.9]} 9... Nxe5
{[%clk 0:02:58]} 10. Bf4 {[%clk 0:02:52.9]} 10... Bd6 {[%clk 0:02:58.3]} 11. Bg3
{[%clk 0:02:47.4]} 11... O-O {[%clk 0:02:56.9]} 12. O-O-O {[%clk 0:02:44.7]}
12... Ng4 {[%clk 0:02:36]} 13. Bxd6 {[%clk 0:02:24]} 13... cxd6 {[%clk
0:02:35.4]} 14. Rd2 {[%clk 0:02:24.6]} 14... Be6 {[%clk 0:02:14.2]} 15. h3
{[%clk 0:02:17.4]} 15... Ne5 {[%clk 0:02:13.8]} 16. b3 {[%clk 0:02:15.3]} 16...
Rfd8 {[%clk 0:02:07.8]} 17. f4 {[%clk 0:02:13.4]} 17... Nc6 {[%clk 0:02:01]} 18.
g4 {[%clk 0:02:03.5]} 18... a6 {[%clk 0:01:52.7]} 19. Bg2 {[%clk 0:01:59.2]}
19... f6 {[%clk 0:01:41.6]} 20. Rhd1 {[%clk 0:01:39.9]} 20... Kf8 {[%clk
0:01:10]} 21. Rxd6 {[%clk 0:01:09.6]} 21... Rxd6 {[%clk 0:01:09.2]} 22. Rxd6
{[%clk 0:01:10.5]} 22... Ke7 {[%clk 0:01:09.6]} 23. Rd2 {[%clk 0:01:07.1]} 23...
Rc8 {[%clk 0:01:05.3]} 24. Kb2 {[%clk 0:01:06.7]} 24... Rc7 {[%clk 0:01:00.8]}
25. Nd5+ {[%clk 0:00:48.8]} 25... Bxd5 {[%clk 0:01:00.2]} 26. Bxd5 {[%clk
0:00:49.7]} 26... Nb4 {[%clk 0:01:00.7]} 27. Bg8 {[%clk 0:00:38]} 27... h6
{[%clk 0:00:56]} 28. Re2+ {[%clk 0:00:37]} 28... Kd6 {[%clk 0:00:42.4]} 29. a3
{[%clk 0:00:27.5]} 29... Nc6 {[%clk 0:00:41.8]} 30. b4 {[%clk 0:00:20.6]} 30...
b6 {[%clk 0:00:28.6]} 31. c3 {[%clk 0:00:20.6]} 31... a5 {[%clk 0:00:26.9]} 32.
Kb3 {[%clk 0:00:20.2]} 32... axb4 {[%clk 0:00:20.4]} 33. axb4 {[%clk 0:00:20.3]}
33... Na7 {[%clk 0:00:17.1]} 34. c4 {[%clk 0:00:18.1]} 34... Kd7 {[%clk
0:00:16.9]} 35. h4 {[%clk 0:00:14]} 35... Nc8 {[%clk 0:00:17.4]} 36. h5 {[%clk
0:00:12.6]} 36... Ne7 {[%clk 0:00:17.8]} 37. Be6+ {[%clk 0:00:12.2]} 37... Kd8
{[%clk 0:00:18.1]} 38. Rd2+ {[%clk 0:00:12.3]} 38... Ke8 {[%clk 0:00:18.4]} 39.
f5 {[%clk 0:00:11.9]} 39... Nc6 {[%clk 0:00:18.2]} 40. Kc3 {[%clk 0:00:11.2]}
40... Ne5 {[%clk 0:00:18.5]} 41. Ra2 {[%clk 0:00:10.9]} 41... b5 {[%clk
0:00:17]} 42. Ra8+ {[%clk 0:00:11.4]} 42... Ke7 {[%clk 0:00:17.4]} 43. c5 {[%clk
0:00:12]} 43... Nxg4 {[%clk 0:00:16.8]} 44. Rb8 {[%clk 0:00:12.3]} 44... Ne3
{[%clk 0:00:17.5]} 45. Rxb5 {[%clk 0:00:11.6]} 45... g5 {[%clk 0:00:16.6]} 46.
hxg6 {[%clk 0:00:11.3]} 46... h5 {[%clk 0:00:16.8]} 47. g7 {[%clk 0:00:11.5]}
47... Rc8 {[%clk 0:00:16.6]} 48. Bxc8 {[%clk 0:00:11.1]} 48... Nd5+ {[%clk
0:00:17.1]} 49. Kc4 {[%clk 0:00:11.1]} 49... Ne3+ {[%clk 0:00:17.1]} 50. Kd4
{[%clk 0:00:10.9]} 50... Nxf5+ {[%clk 0:00:15.8]} 51. Ke4 {[%clk 0:00:11.5]}
51... Kf7 {[%clk 0:00:16.6]} 52. Bxf5 {[%clk 0:00:11]} 52... Kxg7 {[%clk
0:00:15.9]} 53. Rb7+ {[%clk 0:00:11.2]} 53... Kh6 {[%clk 0:00:16.3]} 54. Kf4
{[%clk 0:00:10.2]} 1-0